bitfinex-derivatives/quotes_ETHF0:USTF0_20250923
["timestamp","ask_amount","ask_price","bid_price","bid_amount"]
[1758668931300,0.761,4183.4,4183.3,3.4226]
[1758668931592,1.73786256,4183.4,4183.3,3.2078]
[1758668933392,1.73786256,4183.4,4183.3,3.7393]
[1758668936892,0.54677256,4183.4,4183.3,4.3883]
[1758668937096,0.95559,4183.5,4183.4,0.86509]
[1758668937401,1.5018386,4183.5,4183.4,1.18049]
[1758668937805,0.5462486,4183.5,4183.4,1.18049]
[1758668938005,0.43006,4183.8,4183.7,0.86506]
[1758668938203,1.94466664,4183.8,4183.7,0.7504]
[1758668941303,1.94466664,4183.8,4183.7,0.5315]
[1758668941506,1.94466664,4183.8,4183.7,0.2161]
[1758668941808,1.94466664,4183.8,4183.7,0.5315]
[1758668942506,1.94466664,4183.8,4183.7,0.7504]
[1758668943512,0.54620664,4183.8,4183.7,1.18046]
[1758668943699,0.5255,4184.1,4184.0,1.31093]
[1758668944207,0.5255,4184.3,4184.2,0.86501]
[1758668944400,1.07154793,4184.3,4184.2,1.18041]
[1758668944807,0.54604793,4184.3,4184.2,1.18041]
[1758668945005,3.7333,4184.6,4184.5,1.18038]
[1758668945193,4.27929976,4184.6,4184.5,1.31088]
[1758668945799,0.4385,4185.5,4185.4,0.435]
[1758668945999,0.2166,4185.5,4185.4,1.18029]
[1758668946996,3.5167,4185.8,4185.1,3.2078]
[1758668946997,3.7333,4185.8,4185.7,1.18026]
[1758668947202,3.9362,4185.8,4185.7,1.18026]
[1758668947807,0.7284,4185.8,4185.7,1.18026]
[1758668947998,0.7284,4185.8,4185.7,0.7504]
[1758668948601,0.5489,4185.9,4185.8,0.64595]
[1758668948899,0.9684,4185.9,4185.8,0.5315]
[1758668952807,1.39824,4185.9,4185.8,0.5315]
[1758668954503,1.39824,4185.9,4185.8,0.7525]
[1758668954824,1.39824,4185.9,4185.8,1.18235]
[1758668955311,1.39824,4185.9,4185.8,0.7525]
[1758668955513,1.39824,4185.9,4185.8,1.18235]
[1758668955807,1.15824,4185.9,4185.8,1.18235]
[1758668956004,1.39824,4185.9,4185.8,1.18235]
[1758668956406,1.39824,4185.9,4185.8,0.7525]
[1758668958918,1.39824,4185.9,4185.8,1.18235]
[1758668958919,0.9684,4185.9,4185.8,1.18235]
[1758668960017,1.39824,4185.9,4185.8,0.7525]
[1758668960217,1.39824,4185.9,4185.8,1.18235]
[1758668960407,0.24,4185.9,4185.8,1.18235]
[1758668961318,0.66984,4185.9,4185.8,1.18235]
[1758668961519,1.21014,4185.9,4185.8,1.18235]
[1758668962320,1.21014,4185.9,4185.8,0.7525]
[1758668963917,1.21014,4185.9,4185.8,1.18235]
[1758668964113,0.7803,4185.9,4185.8,1.18235]
[1758668964612,3.7207,4186.3,4186.2,0.42981]
[1758668964815,0.9427,4186.3,4186.2,1.16921]
[1758668965019,0.2063,4186.3,4186.2,1.16921]
[1758668965312,0.42979,4186.4,4186.3,0.7394]
[1758668965518,0.94269,4186.4,4186.3,0.7394]
[1758668965820,1.15789,4186.4,4186.3,0.7394]
[1758668968913,1.15789,4186.4,4186.3,0.215]
[1758668969224,0.63613,4186.0,4185.9,1.16924]
[1758668969525,0.94273,4186.0,4185.9,1.16924]
[1758668970022,0.94273,4186.0,4185.9,0.7394]
[1758668970323,0.94273,4186.0,4185.9,1.16924]
[1758668971411,0.94273,4186.0,4185.9,0.7394]
[1758668971614,1.15796,4185.7,4185.6,3.4228]
[1758668971817,1.15796,4185.7,4185.6,3.7281]
[1758668972015,1.15796,4185.7,4185.6,3.4228]
[1758668972219,1.15796,4185.7,4185.6,0.215]
[1758668972517,1.15796,4185.7,4185.4,0.3053]
[1758668972518,0.4215,4185.7,4185.4,0.3053]
[1758668972723,1.28588,4185.5,4185.4,0.5203]
[1758668973020,1.28588,4185.5,4185.4,0.7394]
[1758668978027,1.15798,4185.5,4185.4,1.16929]
[1758668984030,0.73644,4185.9,4185.8,0.215]
[1758668984230,1.05936914,4185.9,4185.8,1.16925]
[1758668985328,1.05935004,4185.9,4185.8,1.16925]
[1758668985635,1.05935391,4185.9,4185.8,1.16925]
[1758668986034,0.5129,4185.9,4185.8,1.16925]
[1758668986437,1.05872967,4185.9,4185.8,1.16925]
[1758668986632,0.75212967,4185.9,4185.8,1.16925]
[1758668987934,0.5129,4185.9,4185.8,1.16925]
[1758668988134,1.096,4186.5,4186.4,0.95009]
[1758668988434,1.51392052,4186.5,4186.4,1.16919]
[1758668990430,1.27392052,4186.5,4186.4,1.16919]
[1758668993740,1.39672052,4186.5,4186.4,1.16919]
[1758668998243,0.7392,4186.3,4186.2,0.4298]
[1758668998443,1.169,4186.3,4186.2,0.4298]
[1758668998641,0.42982,4186.1,4186.0,0.3158]
[1758668998847,1.16902,4186.1,4186.0,0.42983]
[1758669000245,0.7392,4186.1,4186.0,0.42983]
[1758669000640,0.7392,4186.1,4186.0,0.94733]
[1758669000947,0.7392,4186.1,4186.0,1.27053]
[1758669001140,1.16902,4186.1,4186.0,0.719]
[1758669001444,1.16902,4186.1,4186.0,1.14883]
[1758669002843,1.16902,4186.1,4186.0,0.2017]
[1758669003146,1.16902,4186.1,4186.0,0.94733]
[1758669004148,0.7392,4186.1,4186.0,0.94733]
[1758669004349,0.7392,4186.1,4186.0,1.14883]
[1758669004946,0.95692,4186.1,4186.0,1.27053]
[1758669005246,1.16902,4186.1,4186.0,1.14883]
[1758669006150,1.16902,4186.1,4186.0,0.719]
[1758669006447,1.16902,4186.1,4186.0,1.14883]
[1758669006846,1.16902,4186.1,4186.0,0.719]
[1758669007658,1.16902,4186.1,4186.0,1.14883]
[1758669008157,1.16902,4186.1,4186.0,0.719]
[1758669009058,1.16902,4186.1,4186.0,1.14883]
[1758669009446,1.16902,4186.1,4186.0,0.719]
[1758669009648,1.16902,4186.1,4186.0,1.14883]
[1758669011865,0.5271,4186.1,4186.0,1.27053]
[1758669013362,1.07330525,4186.1,4186.0,1.27053]
[1758669016055,0.4569,4186.4,4186.3,0.7523]
[1758669016262,1.33480969,4186.4,4186.3,1.1643]
[1758669018058,1.09480969,4186.4,4186.3,1.1643]
[1758669018265,0.54630969,4186.4,4186.3,1.1643]
[1758669018765,0.54630969,4186.4,4186.3,1.4043]
[1758669019064,0.23042908,4186.6,4186.5,0.84178]
[1758669019258,1.33209374,4186.6,4186.5,1.16428]
[1758669020968,0.8955,4186.5,4186.4,3.63759]
[1758669021263,1.44306466,4186.5,4186.4,3.63759]
[1758669021462,1.87284466,4186.5,4186.4,3.63759]
[1758669022361,1.87284466,4186.5,4186.4,3.96009]
[1758669022861,1.87284466,4186.5,4186.4,4.16989]
[1758669023872,1.87284466,4186.5,4186.4,3.84739]
[1758669024371,0.8629,4186.0,4185.9,0.42984]
[1758669024776,0.7371,4186.0,4185.9,1.17304]
[1758669024963,0.24,4186.3,4186.2,0.85001]
[1758669025168,1.52461223,4186.3,4186.2,1.17301]
[1758669025373,1.95441223,4186.3,4186.2,1.17301]
[1758669025578,1.95441223,4186.3,4186.2,0.7432]
[1758669025779,1.95441223,4186.3,4186.2,1.17301]
[1758669029872,1.95441223,4186.3,4186.2,0.7432]
[1758669031179,1.4069,4186.3,4186.2,0.7432]
[1758669031373,1.95442717,4186.3,4186.2,0.7432]
[1758669032679,1.16695,4185.8,4185.7,3.951]
[1758669032871,1.71451133,4185.8,4185.7,3.2078]
[1758669038688,1.71451133,4185.8,4185.7,3.5308]
[1758669039784,0.97741133,4185.8,4185.7,3.951]
[1758669039987,0.24,4185.9,4185.8,0.7432]
[1758669040180,0.24,4185.9,4185.8,1.17305]
[1758669042884,1.16693,4186.0,4185.9,0.7432]
[1758669043080,1.71378438,4186.0,4185.9,1.17304]
[1758669044386,0.5328,4186.0,4185.9,1.17304]
[1758669044583,0.42981,4186.2,4186.1,0.42982]
[1758669044782,1.50942577,4186.2,4186.1,1.17302]
[1758669045192,1.07961577,4186.2,4186.1,1.17302]
[1758669045589,1.50942577,4186.2,4186.1,1.17302]
[1758669045888,1.71372577,4186.2,4186.1,0.7432]
[1758669047895,1.71372577,4186.2,4186.1,0.2012]
[1758669048193,1.16693,4186.1,4186.0,0.95403]
[1758669048393,1.71374577,4186.1,4186.0,0.95403]
[1758669048693,1.71374577,4186.1,4186.0,1.17303]
[1758669049292,1.28391577,4186.1,4186.0,1.30073]
[1758669049890,1.71373577,4186.1,4186.0,0.8709]
[1758669050096,1.71373577,4186.1,4186.0,0.7432]
[1758669051290,1.71373577,4186.1,4186.0,0.2012]
[1758669051491,1.16695,4185.8,4185.7,3.2078]
[1758669051696,1.71544502,4185.8,4185.7,3.2078]
[1758669052995,1.71544502,4185.8,4185.7,3.5308]
[1758669054598,0.63409,4185.4,4185.3,0.516]
[1758669054796,0.63409,4185.4,4185.2,3.2078]
[1758669054797,1.1568,4185.3,4185.2,3.2078]
[1758669054997,1.1568,4185.3,4185.2,3.9402]
[1758669057397,0.4299,4185.3,4185.2,4.06401]
[1758669057694,0.9515,4185.3,4185.2,3.6341]
[1758669058103,0.9515,4185.3,4185.2,3.9402]
[1758669058596,0.9515,4185.3,4185.2,4.37011]
[1758669060703,0.9515,4185.3,4185.2,3.9402]
[1758669061002,0.9515,4185.3,4185.2,4.37011]
[1758669061204,1.50011328,4185.3,4185.2,4.37011]
[1758669061398,1.50011328,4185.3,4185.2,3.9402]
[1758669061809,1.70541328,4185.3,4185.2,3.9402]
[1758669062201,0.63413,4185.0,4184.9,0.516]
[1758669062402,1.28283,4185.0,4184.9,0.516]
[1758669062608,1.52283,4185.0,4184.9,0.516]
[1758669062906,1.39683,4185.0,4184.9,0.7324]
[1758669063114,1.94549749,4185.0,4184.9,0.7324]
[1758669063313,1.39683,4185.0,4184.9,0.7324]
[1758669063613,1.39683,4185.0,4184.9,1.16234]
[1758669064716,1.39683,4185.0,4184.9,0.7324]
[1758669065214,0.95153,4185.0,4184.9,1.16234]
[1758669065419,0.7269,4185.5,4185.4,0.7324]
[1758669065712,0.24,4185.5,4185.4,1.16229]
[1758669065907,3.2078,4186.2,4186.1,0.94582]
[1758669066110,3.99599886,4186.2,4186.1,1.16222]
[1758669066918,3.4478,4186.2,4186.1,1.16222]
[1758669067420,1.07427,4187.2,4186.1,1.16222]
[1758669067421,3.2078,4187.2,4187.1,0.7324]
[1758669068016,0.24,4187.4,4187.3,0.7324]
[1758669068213,0.4442,4187.4,4187.3,0.7324]
[1758669069018,0.9669,4187.4,4187.3,0.516]
[1758669069208,0.9669,4187.4,4187.3,0.2099]
[1758669069710,0.7269,4187.1,4187.0,1.16212]
[1758669070705,0.2042,4187.3,4187.2,0.6396]
[1758669070916,0.5216,4187.3,4187.2,1.1621]
[1758669071617,0.7269,4187.3,4187.2,0.516]
[1758669071820,0.7269,4187.0,4186.9,1.16213]
[1758669074619,0.5216,4187.0,4186.9,1.16213]
[1758669076020,0.7405,4187.0,4186.9,1.16213]
[1758669078617,0.5377,4187.3,4187.2,1.1546]
[1758669078923,0.7566,4187.3,4187.2,1.1546]
[1758669079326,1.18629,4187.3,4187.2,1.1546]
[1758669079524,1.18629,4187.3,4187.2,0.7249]
[1758669079726,1.18629,4187.3,4187.2,1.1546]
[1758669081429,1.18629,4187.3,4187.2,0.7249]
[1758669081628,1.18629,4187.3,4187.2,0.2013]
[1758669082129,1.18629,4187.3,4187.2,0.631]
[1758669082430,1.18629,4187.3,4187.2,0.9336]
[1758669082723,1.18632,4187.1,4186.9,0.73233]
[1758669082923,1.31902,4187.0,4186.9,0.42973]
[1758669083739,0.42975,4186.7,4186.6,3.63757]
[1758669083920,1.17055,4186.7,4186.6,3.63757]
[1758669084416,1.17055,4186.7,4186.6,3.2078]
[1758669085325,0.99128,4186.5,4186.4,0.5309]
[1758669085519,1.30328,4186.5,4186.4,0.5309]
[1758669085719,1.30328,4186.5,4186.4,0.2161]
[1758669086529,1.30328,4186.5,4186.4,0.5309]
[1758669086722,1.30328,4186.5,4186.4,0.2161]
[1758669087122,1.30328,4186.5,4186.4,0.5309]
[1758669088028,0.7408,4186.2,4186.1,0.96071]
[1758669088230,1.17061,4186.2,4186.1,0.5309]
[1758669088423,1.30333,4186.0,4185.9,0.5309]
[1758669088623,0.7408,4185.7,4185.6,0.96077]
[1758669089432,1.17066,4185.7,4185.6,0.96077]
[1758669089930,0.7408,4185.7,4185.6,1.17277]
[1758669090732,1.17066,4185.7,4185.6,1.17277]
[1758669091334,1.17066,4185.7,4185.6,0.7429]
[1758669091931,1.17066,4185.7,4185.6,1.17277]
[1758669096936,1.17066,4185.7,4185.6,0.7429]
[1758669097137,0.96401,4185.2,4185.1,0.5309]
[1758669097331,1.17071,4185.2,4185.1,0.5309]
[1758669097821,1.17071,4185.2,4185.1,0.7429]
[1758669098330,1.17071,4185.2,4185.1,0.2161]
[1758669098835,0.99143,4185.0,4184.9,3.7387]
[1758669099026,1.30343,4185.0,4184.9,3.7387]
[1758669099533,1.30343,4185.0,4184.9,4.16864]
[1758669099733,1.30343,4185.0,4184.9,4.38064]
[1758669099930,1.17073,4185.0,4184.9,4.38064]
[1758669100727,0.7408,4185.0,4184.9,4.38064]
[1758669100935,0.4299,4185.3,4185.1,0.85801]
[1758669101130,0.4299,4185.3,4185.2,0.7429]
[1758669101630,0.9486,4185.3,4185.2,0.7429]
[1758669102934,0.9486,4185.3,4185.2,1.17281]
[1758669103832,0.4299,4185.3,4185.2,1.17281]
[1758669104137,0.94855,4185.8,4185.7,0.7429]
[1758669104339,1.18855,4185.8,4185.7,0.7429]
[1758669105138,1.18855,4185.8,4185.7,1.17276]
[1758669106243,0.42991,4185.3,4185.2,0.4281]
[1758669106539,1.17071,4185.3,4185.2,0.4281]
[1758669106931,1.17071,4185.3,4185.2,0.7429]
[1758669107237,1.17072,4185.1,4185.0,0.2161]
[1758669107437,1.30343,4185.0,4184.9,3.95254]
[1758669107640,1.30343,4185.0,4184.9,4.16864]
[1758669107843,1.17073,4185.0,4184.9,4.38064]
[1758669109048,0.7408,4185.0,4184.9,4.38064]
[1758669109436,1.17073,4185.0,4184.9,4.38064]
[1758669110740,1.17073,4185.0,4184.9,3.9507]
[1758669110940,1.30343,4185.0,4184.9,3.4239]
[1758669111641,1.30343,4185.0,4184.9,4.16864]
[1758669111845,0.8735,4185.0,4184.9,4.38064]
[1758669112144,0.7408,4185.0,4184.9,4.38064]
[1758669112743,0.5187,4185.0,4184.9,4.38064]
[1758669118445,0.94863,4185.0,4184.9,4.38064]
[1758669119038,1.16863,4185.0,4184.9,4.38064]
[1758669119845,0.7387,4185.0,4184.9,4.38064]
[1758669120942,0.5187,4185.0,4184.9,4.38064]
[1758669121240,0.241,4185.1,4185.0,1.30763]
[1758669129559,0.94718,4185.5,4185.4,0.85748]
[1758669129758,1.06612277,4185.5,4185.4,1.17458]
[1758669132355,0.75752277,4185.5,4185.4,1.17458]
[1758669132555,0.54882277,4185.5,4185.4,1.17458]
[1758669133763,0.77032277,4185.5,4185.4,1.17458]
[1758669133961,0.4345,4185.2,4185.1,0.97412]
[1758669134257,0.9851,4185.2,4185.1,0.42992]
[1758669134574,1.53392277,4185.2,4185.1,0.42992]
[1758669134752,1.53392277,4185.2,4185.1,0.64782]
[1758669135152,1.53392277,4185.2,4185.1,0.97412]
[1758669138357,1.96383277,4185.2,4185.1,0.5442]
[1758669138558,0.8783,4185.0,4184.9,3.63773]
[1758669138765,1.42712277,4185.0,4184.9,3.63773]
[1758669138970,1.42712277,4185.0,4184.9,3.85563]
[1758669139171,1.42712277,4185.0,4184.9,4.18193]
[1758669139365,1.29392277,4185.0,4184.9,4.39213]
[1758669141569,0.77032277,4185.0,4184.9,4.39213]
[1758669141772,0.54882277,4185.0,4184.9,4.39213]
[1758669141967,0.4615,4185.2,4185.1,1.18432]
[1758669142161,1.32144045,4185.2,4185.1,1.18432]
[1758669143468,1.08144045,4185.2,4185.1,1.18432]
[1758669143669,1.32144045,4185.2,4185.1,1.18432]
[1758669144071,1.08144045,4185.2,4185.1,1.18432]
[1758669144271,1.32144045,4185.2,4185.1,1.18432]
[1758669144571,1.53444045,4185.2,4185.1,1.18432]
[1758669144767,1.29444045,4185.2,4185.1,1.18432]
[1758669145072,1.53444045,4185.2,4185.1,1.18432]
[1758669151175,1.96435045,4185.2,4185.1,1.18432]
[1758669151369,1.30753,4185.0,4184.9,3.63774]
[1758669151778,1.17394,4184.9,4184.8,0.42995]
[1758669151968,1.17395,4184.8,4184.7,0.2161]
[1758669152169,0.744,4184.6,4184.5,0.42998]
[1758669152476,0.8776,4184.5,4184.4,3.63779]
[1758669153267,1.30758,4184.5,4184.4,3.63779]
[1758669153465,1.42709251,4184.5,4184.4,3.63779]
[1758669153780,0.744,4184.2,4184.1,0.5421]
[1758669153977,0.984,4184.2,4184.1,0.97212]
[1758669154279,1.17404,4183.9,4183.8,0.2161]
[1758669154580,1.72310439,4183.9,4183.8,0.2161]
[1758669154877,1.72310439,4183.9,4183.8,0.5421]
[1758669155774,1.72310439,4183.9,4183.8,0.97215]
[1758669156173,1.72310439,4183.9,4183.8,0.5421]
[1758669157089,1.72310439,4183.9,4183.8,0.97215]
[1758669157381,1.72310439,4183.9,4183.8,0.5421]
[1758669158080,1.72310439,4183.9,4183.8,0.97215]
[1758669158281,0.744,4183.9,4183.8,1.17625]
[1758669160787,0.744,4183.9,4183.8,0.7462]
[1758669161086,4.38184,4183.9,4183.8,0.7462]
[1758669161486,4.38184,4183.9,4183.8,1.17625]
[1758669162189,4.38184,4183.9,4183.8,0.7462]
[1758669162790,4.38184,4183.9,4183.8,1.17625]
[1758669162990,3.9518,4183.9,4183.8,1.17625]
[1758669163290,4.38184,4183.9,4183.8,1.17625]
[1758669163988,4.38184,4183.9,4183.8,0.7462]
[1758669164484,4.38184,4183.9,4183.8,1.17625]
[1758669164690,4.1918,4183.9,4183.8,1.17625]
[1758669164887,4.1918,4183.9,4183.8,0.7462]
[1758669165082,4.62184,4183.9,4183.8,0.7462]
[1758669167491,4.62184,4183.9,4183.8,0.5421]
[1758669167791,1.17407,4183.6,4183.5,0.97218]
[1758669167989,1.41407,4183.6,4183.5,0.97218]
[1758669168493,1.41407,4183.6,4183.5,1.17628]
[1758669168686,0.984,4183.6,4183.5,1.17628]
[1758669169695,1.41407,4183.6,4183.5,0.7462]
[1758669169881,1.41407,4183.6,4183.5,1.17628]
[1758669175098,1.41407,4183.6,4183.5,0.7462]
[1758669175501,0.43009,4183.4,4183.3,3.2078]
[1758669175697,0.7285,4183.0,4182.9,0.5186]
[1758669175898,1.15866,4182.8,4182.7,0.2041]
[1758669176101,1.39866,4182.8,4182.7,0.2041]
[1758669176699,1.39866,4182.8,4182.7,0.5186]
[1758669177102,1.39866,4182.8,4182.7,0.7202]
[1758669178200,0.9685,4182.8,4182.7,1.15037]
[1758669178400,1.39866,4182.8,4182.7,1.15037]
[1758669180208,1.39866,4182.8,4182.7,0.7202]
[1758669180505,1.39866,4182.8,4182.7,1.15037]
[1758669181106,1.39866,4182.8,4182.7,0.7202]
[1758669181607,1.39866,4182.8,4182.7,1.15037]
[1758669183005,1.39866,4182.8,4182.7,0.2041]
[1758669183305,1.15868,4182.6,4182.5,0.63429]
[1758669183610,0.7285,4182.6,4182.5,0.94879]
[1758669184000,1.15868,4182.6,4182.5,0.94879]
[1758669185108,1.15868,4182.6,4182.5,1.15039]
[1758669187319,1.15868,4182.6,4182.5,0.7202]
[1758669187605,0.24,4182.8,4182.2,3.2078]
[1758669187606,1.1587,4182.4,4182.3,0.5186]
[1758669188711,1.1587,4182.4,4182.3,0.94881]
[1758669189208,1.1587,4182.4,4182.3,1.15041]
[1758669190008,0.7633,4182.8,4182.7,0.83587]
[1758669190313,0.7633,4182.8,4182.7,1.15037]
[1758669191005,0.4459,4182.8,4182.7,1.15037]
[1758669191715,0.2059,4182.8,4182.7,1.15037]
[1758669191909,0.4459,4182.8,4182.7,1.15037]
[1758669192216,0.4459,4183.2,4183.1,0.7424]
[1758669192713,1.53806639,4183.2,4183.1,0.7424]
[1758669193515,1.53806639,4183.2,4183.1,1.17252]
[1758669195620,1.53806639,4183.2,4183.1,1.19072]
[1758669197813,1.53806639,4183.2,4183.1,0.97092]
[1758669198017,1.53806639,4183.2,4183.1,0.64332]
[1758669198416,1.53806639,4183.2,4183.1,0.97092]
[1758669199320,1.53806639,4183.2,4183.1,1.19072]
[1758669200220,1.53806639,4183.2,4183.1,0.43012]
[1758669200719,1.53806639,4183.2,4183.1,0.64332]
[1758669201022,1.53806639,4183.2,4183.1,0.97092]
[1758669201222,1.53806639,4183.2,4183.1,1.19072]
[1758669204515,0.78936639,4183.2,4183.1,1.19072]
[1758669204825,1.95437639,4183.2,4183.1,0.43012]
[1758669205026,1.52426639,4183.2,4183.1,0.43012]
[1758669209020,1.52426639,4183.2,4183.1,0.74912]
[1758669209323,1.52426639,4183.2,4183.1,1.17202]
[1758669211229,1.52509012,4183.2,4183.1,1.17202]
[1758669211418,1.95520012,4183.2,4183.1,1.17202]
[1758669215334,1.52509012,4183.2,4183.1,1.17202]
[1758669215630,1.95520012,4183.2,4183.1,1.17202]
[1758669218635,1.95520012,4183.2,4183.1,0.43012]
[1758669218834,1.95520012,4183.2,4183.1,0.96102]
[1758669219331,1.71520012,4183.2,4183.1,0.96102]
[1758669219532,1.95520012,4183.2,4183.1,0.96102]
[1758669222428,1.95520012,4183.2,4183.1,1.17202]
[1758669222734,1.52509012,4183.2,4183.1,1.17202]
[1758669225042,1.28509012,4183.2,4183.1,1.17202]
[1758669225241,1.52509012,4183.2,4183.1,1.17202]
[1758669225840,1.16503,4183.1,4182.9,0.43014]
[1758669226031,1.40669012,4183.0,4182.9,0.64204]
[1758669226230,1.40669012,4183.0,4182.9,0.96104]
[1758669226436,0.4306,4182.6,4182.5,0.5458]
[1758669226636,0.7349,4182.6,4182.5,1.29499]
[1758669226833,1.28606432,4182.6,4182.5,1.17209]
[1758669227541,0.7349,4182.6,4182.5,1.17209]
[1758669228538,1.28595142,4182.6,4182.5,1.17209]
[1758669230943,1.71613142,4182.6,4182.5,1.17209]
[1758669231342,1.16508,4182.6,4182.5,1.17209]
[1758669231745,1.71600402,4182.6,4182.5,1.17209]
[1758669236348,1.71600402,4182.6,4182.5,0.43019]
[1758669236646,1.3109,4182.5,4182.4,0.4302]
[1758669236849,2.10182402,4182.5,4182.4,0.4302]
[1758669238450,2.10182402,4182.5,4182.4,0.958]
[1758669239155,1.67162402,4182.5,4182.4,0.958]
[1758669239348,0.43016,4182.8,4182.7,0.43017]
[1758669239552,1.54891598,4182.8,4182.7,1.17027]
[1758669239752,1.32921598,4182.8,4182.7,1.17027]
[1758669240253,1.97906598,4182.8,4182.7,1.17027]
[1758669241459,1.97906598,4182.8,4182.7,0.7401]
[1758669241653,1.18847,4182.7,4182.6,0.43017]
[1758669241849,1.73908598,4182.7,4182.6,0.75327]
[1758669242155,1.30891598,4182.7,4182.6,0.95797]
[1758669242350,1.30891598,4182.7,4182.6,1.17027]
[1758669242952,1.08921598,4182.7,4182.6,1.17027]
[1758669243161,0.55061598,4182.7,4182.6,1.17027]
[1758669246958,0.24,4182.9,4182.8,0.43015]
[1758669247261,0.24,4182.9,4182.8,1.17025]
[1758669247666,0.4523,4182.9,4182.8,1.17025]
[1758669248171,0.24,4182.9,4182.8,1.17025]
[1758669250359,0.4523,4182.9,4182.8,1.17025]
[1758669250662,0.7786,4182.9,4182.8,1.17025]
[1758669251470,0.4523,4182.9,4182.8,1.17025]
[1758669252171,0.7696,4182.9,4182.8,1.17025]
[1758669253168,0.9837,4182.9,4182.8,1.17025]
[1758669255469,1.53426141,4182.9,4182.8,1.17025]
[1758669256271,0.9837,4182.9,4182.8,1.17025]
[1758669256572,1.53501107,4182.9,4182.8,1.17025]
[1758669258386,0.9837,4182.9,4182.8,1.17025]
[1758669261472,0.7696,4182.9,4182.8,1.17025]
[1758669267371,1.32088883,4182.9,4182.8,1.17025]
[1758669271381,1.75102883,4182.9,4182.8,1.17025]
[1758669271584,1.96202883,4182.9,4182.8,1.17025]
[1758669271877,0.43018,4182.7,4182.6,0.43018]
[1758669272076,1.18178,4182.7,4182.6,0.43018]
[1758669272480,1.73334376,4182.7,4182.6,0.43018]
[1758669273270,1.73334376,4182.7,4182.6,0.97928]
[1758669275683,1.18179,4182.5,4182.4,0.97929]
[1758669275886,1.18179,4182.5,4182.4,1.1943]
[1758669277285,1.30689,4182.5,4182.4,1.1943]
[1758669277790,0.8767,4182.5,4182.4,1.1943]
[1758669279695,0.7516,4182.5,4182.4,1.1943]
[1758669287889,0.24,4182.9,4182.8,0.43015]
[1758669288096,1.33139017,4182.9,4182.8,1.19425]
[1758669288290,0.75869017,4182.9,4182.8,1.19425]
[1758669289092,1.09139017,4182.9,4182.8,1.19425]
[1758669298612,1.29479017,4182.9,4182.8,1.19425]
[1758669300313,1.09139017,4182.9,4182.8,1.19425]
[1758669300613,1.09139017,4182.9,4182.8,4.40205]
[1758669300818,0.3183,4183.1,4183.0,1.29443]
[1758669301113,0.5312,4183.5,4183.4,1.16539]
[1758669301420,1.08180938,4183.5,4183.4,1.16539]
[1758669301612,1.83018938,4183.5,4183.4,1.16539]
[1758669301816,1.15804,4182.9,4182.8,3.63795]
[1758669303117,0.7279,4182.9,4182.8,3.63795]
[1758669304123,0.7279,4182.9,4182.8,4.16645]
[1758669304324,0.7279,4182.9,4182.8,4.37325]
[1758669312429,1.15804,4182.9,4182.8,4.37325]
[1758669312830,0.7279,4182.9,4182.8,4.37325]
[1758669313625,0.43015,4182.8,4182.7,0.43016]
[1758669313830,1.70922305,4182.8,4182.7,0.43016]
[1758669314223,1.70922305,4182.8,4182.7,0.95296]
[1758669315329,1.70922305,4182.8,4182.7,0.5228]
[1758669315928,1.70922305,4182.8,4182.7,0.95297]
[1758669316529,1.70922305,4182.8,4182.7,0.65037]
[1758669316923,1.27907305,4182.8,4182.7,0.95297]
[1758669317824,1.27907305,4182.8,4182.7,1.16957]
[1758669318837,1.51907305,4182.8,4182.7,1.16957]
[1758669319335,1.94922305,4182.8,4182.7,0.65037]
[1758669319735,1.94922305,4182.8,4182.7,0.95297]
[1758669322637,1.94922305,4182.8,4182.7,0.43017]
[1758669322937,0.43019,4182.5,4182.4,0.43019]
[1758669323138,1.28249,4182.5,4182.4,0.43019]
[1758669323436,0.43021,4182.3,4182.1,0.3026]
[1758669323640,0.43021,4182.3,4181.8,3.2078]
[1758669323641,0.97504,4182.0,4181.9,0.5254]
[1758669323838,1.85273794,4182.0,4181.9,0.5254]
[1758669324438,1.30244,4182.0,4181.9,0.95565]
[1758669325541,0.8722,4182.0,4181.9,0.95565]
[1758669326227,0.7495,4182.0,4181.9,1.17565]
[1758669326636,0.24,4182.2,4182.1,0.43023]
[1758669326836,0.24,4182.2,4182.1,1.17563]
[1758669327340,0.7687,4182.2,4182.1,1.17563]
[1758669327538,0.24,4182.2,4182.1,1.17563]
[1758669329543,0.4413,4182.2,4182.1,1.17563]
[1758669329842,0.9895,4182.2,4182.1,1.17563]
[1758669333047,0.4413,4182.2,4182.1,1.17563]
[1758669333347,0.24,4182.2,4182.1,1.17563]
[1758669338043,3.7365,4183.2,4183.1,0.85252]
[1758669338249,4.28602194,4183.2,4183.1,1.17552]
[1758669338455,3.6491,4183.2,4183.1,1.17552]
[1758669339336,3.9765,4183.2,4183.1,1.17552]
[1758669341351,5.17693174,4183.2,4183.1,0.7454]
[1758669341551,5.17693174,4183.2,4183.1,0.95552]
[1758669342048,4.74682174,4183.2,4183.1,0.95552]
[1758669342246,4.74682174,4183.2,4183.1,1.17552]
[1758669344354,4.1973,4183.2,4183.1,1.17552]
[1758669344856,0.7495,4183.2,4183.1,1.17552]
[1758669345149,0.3274,4183.5,4183.2,0.7454]
[1758669345356,1.30223,4184.0,4183.9,0.5254]
[1758669345653,2.09144119,4184.0,4183.9,0.5254]
[1758669346352,1.85144119,4184.0,4183.9,0.7454]
[1758669346544,0.5482,4183.4,4183.3,0.4301]
[1758669346748,0.5482,4183.4,4183.1,0.323]
[1758669346749,0.3274,4183.3,4183.2,0.43011]
[1758669347055,0.7495,4183.3,4183.2,0.43011]